bitfinex-derivatives/quotes_SOLF0:USTF0_20250409
["timestamp","ask_amount","ask_price","bid_price","bid_amount"]
[1744161849190,46.85036709,101.89,101.77,51.39946709]
[1744161849493,0.06821465,101.85,101.83,0.06916994]
[1744161849792,334.37672358,101.94,101.83,46.85036709]
[1744161850094,46.85036709,101.93,101.84,4.5491]
[1744161850293,339.13802358,101.94,101.84,4.5491]
[1744161850597,339.13802358,101.94,101.85,62.0]
[1744161850892,0.07007642,101.9,101.88,0.07311631]
[1744161851299,0.07007642,101.9,101.79,46.85036709]
[1744161851594,9.8231,101.88,101.81,9.8294]
[1744161851796,46.85036709,101.89,101.81,9.8294]
[1744161852193,9.8245,101.87,101.81,9.8294]
[1744161852386,4.895,101.9,101.8,9.409]
[1744161852592,0.06556423,101.85,101.83,0.07400002]
[1744161852794,46.85036709,101.87,101.83,0.07400002]
[1744161852992,46.85036709,101.87,101.78,9.8325]
[1744161853192,0.07171239,101.85,101.83,0.06669132]
[1744161854297,0.07171239,101.85,101.83,9.89379132]
[1744161854497,0.07171239,101.85,101.83,0.06669132]
[1744161855716,12.54276418,101.93,101.84,46.85036709]
[1744161855897,59.39313127,101.93,101.83,0.06669132]
[1744161856097,46.85036709,101.89,101.8,4.7681]
[1744161856304,46.85036709,101.87,101.8,4.7681]
[1744161856702,4.7578,101.88,101.8,4.7681]
[1744161856896,0.066295,101.85,101.82,0.06838914]
[1744161857504,0.066295,101.85,101.82,9.89658914]
[1744161857802,0.066295,101.85,101.82,0.06838914]
[1744161858505,9.8218,101.9,101.84,9.8262]
[1744161858894,4.7051,101.92,101.82,4.7427]
[1744161859306,46.85036709,101.91,101.82,4.7427]
[1744161859610,9.89888897,101.88,101.85,0.06816067]
[1744161859803,0.07508897,101.88,101.85,0.06816067]
[1744161860708,0.07508897,101.88,101.86,9.8245]
[1744161860908,339.03542358,101.94,101.85,0.06816067]
[1744161861209,50.46289317,101.93,101.83,4.5452]
[1744161861398,8.32552608,101.92,101.83,4.5452]
[1744161861601,3.61252608,101.93,101.83,4.5452]
[1744161861802,3.61252608,101.93,101.84,46.85036709]
[1744161862200,0.06716809,101.9,101.87,0.07478271]
[1744161862401,3.61252608,101.93,101.87,0.07478271]
[1744161863012,46.85036709,101.9,101.87,0.07478271]
[1744161863305,46.85036709,101.88,101.77,46.85036709]
[1744161863497,3.61252608,101.87,101.78,9.2439]
[1744161863912,9.8252,101.86,101.8,14.5985]
[1744161864102,19.80087089,101.86,101.8,14.5985]
[1744161864412,9.97567089,101.85,101.8,4.7681]
[1744161864707,6.43382713,101.84,101.82,0.07052872]
[1744161864906,0.06915731,101.84,101.82,0.07052872]
[1744161865508,9.98204377,101.87,101.82,0.07052872]
[1744161865709,6.36466982,101.86,101.82,0.07052872]
[1744161865908,9.98227312,101.89,101.82,0.07052872]
[1744161866109,6.36466982,101.88,101.8,66.7681]
[1744161866305,9.98227312,101.89,101.8,4.7681]
[1744161866609,53.21793755,101.88,101.8,4.7681]
[1744161866802,0.0664744,101.86,101.83,0.07173933]
[1744161868312,9.98672391,101.89,101.83,0.07173933]
[1744161868602,54.99785674,101.92,101.82,46.85036709]
[1744161868803,6.3732545,101.91,101.8,552.7681]
[1744161869006,12.54276418,101.93,101.8,4.7681]
[1744161869007,46.85036709,101.89,101.8,4.7681]
[1744161869208,6.37128427,101.88,101.8,4.7681]
[1744161869414,4.4463,101.92,101.81,62.0]
[1744161869616,0.06697593,101.85,101.83,0.06966975]
[1744161869811,9.99290691,101.91,101.81,62.0]
[1744161870117,0.07322165,101.85,101.83,0.06703994]
[1744161870516,4.4791,101.91,101.8,14.5982]
[1744161870727,0.06741163,101.85,101.83,0.06419389]
[1744161871011,6.37369846,101.89,101.8,4.7681]
[1744161871216,0.07011109,101.85,101.83,0.06768913]
[1744161871414,3.621182,101.9,101.83,0.06768913]
[1744161871613,10.85279846,101.91,101.81,46.85036709]
[1744161871808,9.99509318,101.9,101.82,1.96425063]
[1744161872013,334.37672358,101.94,101.83,46.85036709]
[1744161872217,56.84616194,101.93,101.82,1.96425063]
[1744161872416,9.8239,101.88,101.82,1.96425063]
[1744161872717,0.0673947,101.89,101.86,0.06755448]
[1744161872906,9.99579485,101.9,101.87,1.96328654]
[1744161873110,9.88920877,101.88,101.87,1.96328654]
[1744161873319,19.88500362,101.88,101.87,2.035803]
[1744161873617,16.1972647,101.88,101.87,2.035803]
[1744161874009,9.88868571,101.89,101.87,2.035803]
[1744161874205,0.06608571,101.89,101.87,2.035803]
[1744161874713,9.8231,101.88,101.87,2.035803]
[1744161874910,10.0576845,101.89,101.87,2.035803]
[1744161875110,6.37154255,101.88,101.87,2.035803]
[1744161875311,9.88878571,101.89,101.87,2.035803]
[1744161875513,0.06608571,101.89,101.87,2.035803]
[1744161877712,3.62040025,101.91,101.87,2.035803]
[1744161877914,9.99481754,101.93,101.87,2.035803]
[1744161878106,9.8202,101.92,101.87,11.859303]
[1744161878306,9.8202,101.92,101.87,11.78678654]
[1744161878510,9.98760329,101.93,101.87,1.96328654]
[1744161878722,9.8165,101.95,101.9,9.8205]
[1744161878922,9.98893555,101.97,101.91,1.96251594]
[1744161879126,9.8174,101.94,101.91,1.96251594]
[1744161879418,3.68312768,101.95,101.91,1.96251594]
[1744161879615,6.43454986,101.95,101.91,2.0265122]
[1744161879819,3.68321523,101.95,101.91,2.0265122]
[1744161880022,0.06484632,101.95,101.91,2.0265122]
[1744161880214,9.8192,101.92,101.91,2.0265122]
[1744161880620,6.36668926,101.93,101.91,2.0265122]
[1744161880814,9.8904991,101.93,101.91,2.0265122]
[1744161881016,9.98345391,101.92,101.91,1.96251594]
[1744161881219,9.98345391,101.92,101.91,2.02732313]
[1744161881415,9.8904991,101.93,101.91,2.02732313]
[1744161881820,19.80383068,101.92,101.91,2.02732313]
[1744161882022,9.98586667,101.92,101.91,2.02732313]
[1744161882317,6.36713371,101.92,101.91,2.02732313]
[1744161882522,0.0715991,101.93,101.91,2.02732313]
[1744161882823,9.8898991,101.93,101.91,2.02732313]
[1744161883026,0.0715991,101.93,101.91,2.02732313]
[1744161884225,10.06046963,101.93,101.91,2.02732313]
[1744161884427,9.8192,101.92,101.91,2.02732313]
[1744161884726,9.98887053,101.92,101.91,2.02732313]
[1744161884924,3.61917062,101.92,101.91,2.02732313]
[1744161885227,9.98887053,101.92,101.91,2.02732313]
[1744161885629,3.61917062,101.92,101.91,2.02732313]
[1744161886029,0.0715991,101.93,101.91,2.02732313]
[1744161886225,13.50906972,101.93,101.91,2.02732313]
[1744161886421,9.98887053,101.92,101.91,2.02732313]
[1744161886730,9.99205522,101.92,101.91,2.02732313]
[1744161886921,19.81125522,101.92,101.91,2.02732313]
[1744161887223,53.2221428,101.92,101.82,62.0]
[1744161887426,14.55450176,101.91,101.81,9.3186]
[1744161887630,56.84386885,101.9,101.81,9.3186]
[1744161887833,9.8237,101.88,101.81,9.3186]
[1744161888024,9.99350176,101.88,101.81,9.3186]
[1744161888216,9.99350176,101.87,101.81,9.3186]
[1744161888419,0.06296008,101.86,101.83,0.07028492]
[1744161888828,0.06296008,101.86,101.81,9.3186]
[1744161889032,0.06296008,101.86,101.83,0.06834588]
[1744161890030,0.06296008,101.86,101.84,9.8262]
[1744161890631,0.06296008,101.86,101.85,9.826]
[1744161891432,0.06296008,101.86,101.84,9.8265]
[1744161891634,0.06296008,101.86,101.83,0.06834588]
[1744161892526,0.06296008,101.86,101.85,9.826]
[1744161892723,0.06296008,101.86,101.83,0.06834588]
[1744161893637,0.06296008,101.86,101.85,9.826]
[1744161893839,0.06296008,101.86,101.83,0.06834588]
[1744161894240,0.06296008,101.86,101.83,9.89554588]
[1744161894442,0.06296008,101.86,101.83,0.06834588]
[1744161895839,0.06296008,101.86,101.84,9.8269]
[1744161896337,0.06296008,101.86,101.83,0.06834588]
[1744161897641,0.06296008,101.86,101.85,9.826]
[1744161897844,3.62948772,101.89,101.83,0.06834588]
[1744161898043,6.38846551,101.89,101.86,9.8242]
[1744161898237,6.39295231,101.9,101.82,29.16320439]
[1744161898638,6.39295231,101.9,101.84,29.16320439]
[1744161898840,55.06005674,101.95,101.86,29.16320439]
[1744161899145,55.06005674,101.95,101.87,66.6268]
[1744161899146,10.02805316,101.94,101.87,66.6268]
[1744161899344,6.3946815,101.93,101.87,4.6268]
[1744161899547,10.02805316,101.94,101.87,4.6268]
[1744161899946,9.8183,101.93,101.89,9.8213]
[1744161900145,0.07483692,101.92,101.89,9.89299878]
[1744161900539,0.07483692,101.92,101.89,0.07169878]
[1744161901243,6.39221414,101.91,101.82,29.16320439]
[1744161901444,39.18741971,101.9,101.82,4.653]
[1744161901645,9.8246,101.87,101.83,9.8274]
[1744161902047,19.84881532,101.87,101.82,14.4813]
[1744161902348,29.16320439,101.9,101.82,4.653]
[1744161902549,0.06687969,101.86,101.83,9.89633837]
[1744161902946,0.06687969,101.86,101.83,9.8274]
[1744161903145,0.06687969,101.86,101.83,0.07313956]
[1744161903146,9.8268,101.85,101.83,0.07313956]
[1744161903345,19.84237452,101.85,101.83,0.07313956]
[1744161903549,6.3872661,101.84,101.83,0.07313956]
[1744161903755,9.8268,101.85,101.83,0.07313956]
[1744161904053,6.3872661,101.85,101.83,0.07313956]
[1744161904348,9.8269,101.84,101.83,0.07313956]
[1744161904553,13.45411362,101.84,101.83,0.07313956]
[1744161904750,19.84137972,101.84,101.83,0.07313956]
[1744161904951,9.8269,101.84,101.83,0.07313956]
[1744161905354,10.07870072,101.86,101.83,0.07313956]
[1744161905548,10.01070425,101.85,101.83,0.07313956]
[1744161905755,13.45354598,101.84,101.78,9.8323]
[1744161905957,3.62614598,101.84,101.76,7.9332538]
[1744161906153,13.43607164,101.85,101.76,3.0700538]
[1744161906358,57.45347295,101.84,101.76,3.0700538]
[1744161906549,47.44530131,101.82,101.76,3.0700538]
[1744161906746,0.8277,101.84,101.76,3.0700538]
[1744161907052,0.07163208,101.8,101.78,0.06590546]
[1744161909453,0.07163208,101.8,101.79,9.8318]
[1744161911161,6.36483387,101.85,101.81,9.8292]
[1744161911360,424.4,101.86,101.77,62.0]
[1744161911561,424.4,101.86,101.78,4.8807]
[1744161911759,9.8272,101.84,101.78,4.8807]
[1744161911956,9.97835024,101.84,101.78,4.8807]
[1744161912160,9.97783961,101.83,101.76,3.0700538]
[1744161912352,47.50935144,101.82,101.8,0.06925663]
[1744161912659,50.95705144,101.82,101.76,3.0700538]
[1744161912854,9.96941381,101.81,101.76,3.0700538]
[1744161913055,50.95705144,101.82,101.76,3.0700538]
[1744161913254,50.89300131,101.82,101.76,3.0700538]
[1744161913455,3.4477,101.82,101.76,3.0700538]
[1744161913861,0.06605233,101.8,101.78,0.06693641]
[1744161914062,47.51135364,101.8,101.76,3.0700538]
[1744161914361,9.8323,101.79,101.76,3.0700538]
[1744161914557,0.06605233,101.8,101.76,3.0700538]
[1744161914963,0.06605233,101.8,101.77,9.8335]
[1744161915164,0.06605233,101.8,101.77,9.90459997]
[1744161915463,0.06605233,101.8,101.77,0.07109997]
[1744161916163,9.89685233,101.8,101.77,0.07109997]
[1744161916360,0.06605233,101.8,101.77,0.07109997]
[1744161916560,0.06605233,101.8,101.73,1.94382631]
[1744161916561,47.44530131,101.78,101.73,1.94382631]
[1744161916761,6.33566588,101.77,101.73,1.94382631]
[1744161916955,47.44530131,101.76,101.7,2.29898642]
[1744161917168,47.44530131,101.74,101.7,12.13928642]
[1744161917465,47.44530131,101.76,101.7,2.29898642]
[1744161917660,0.0755104,101.73,101.71,0.06993349]
[1744161918565,0.0755104,101.73,101.67,2.142199]
[1744161918758,47.44530131,101.72,101.67,2.142199]
[1744161919473,47.44530131,101.7,101.65,0.76336454]
[1744161919764,47.44530131,101.7,101.68,0.06275113]
[1744161919961,47.44530131,101.72,101.68,0.06275113]
[1744161920161,47.44530131,101.74,101.68,0.06275113]
[1744161920361,0.06398505,101.7,101.65,0.76336454]
[1744161920960,0.06398505,101.7,101.66,0.06284549]
[1744161921963,0.06398505,101.7,101.67,9.8425]
[1744161922164,0.06398505,101.7,101.66,0.06284549]
[1744161922561,58.70840131,101.77,101.66,62.1110468]
[1744161922870,1.4291,101.77,101.66,52.20820131]
[1744161923065,424.66,101.78,101.67,4.4435]
[1744161923368,29.25412786,101.77,101.67,4.4435]
[1744161923567,424.66,101.78,101.68,29.25412786]
[1744161924071,0.07026959,101.73,101.71,0.06926786]
[1744161924276,0.07026959,101.73,101.72,9.8385]
[1744161924570,424.66,101.78,101.68,29.25412786]
[1744161924867,9.8338,101.77,101.71,0.06727718]
[1744161925069,0.06575296,101.74,101.71,0.06727718]
[1744161925270,0.06575296,101.74,101.72,9.8379]
[1744161925574,424.66,101.78,101.71,0.06368699]
[1744161925868,0.06343975,101.74,101.72,9.8383]
[1744161926064,0.06343975,101.74,101.68,62.0]
[1744161926268,0.06343975,101.74,101.73,0.06291007]
[1744161926469,3.7707,101.8,101.69,47.52953893]
[1744161926671,3.7707,101.8,101.72,0.06834424]
[1744161926872,47.52953893,101.83,101.75,9.8353]
[1744161927071,5.2078,101.84,101.73,52.23313893]
[1744161927570,1.4348,101.84,101.75,47.52953893]
[1744161927771,0.06422965,101.8,101.77,0.07313124]
[1744161928172,47.52953893,101.79,101.73,4.7036]
[1744161928376,9.8379,101.73,101.68,9.842]
[1744161928576,9.8379,101.73,101.67,9.6095]
[1744161928868,47.52953893,101.74,101.66,9.844]
[1744161928869,9.91090691,101.72,101.66,9.844]
[1744161929073,9.91090691,101.72,101.65,0.76336454]
[1744161929074,47.60124584,101.72,101.69,0.07110635]
[1744161929274,47.60124584,101.72,101.65,0.76336454]
[1744161929574,47.52953893,101.71,101.65,0.76336454]
[1744161930270,47.52953893,101.69,101.64,1.07393371]
[1744161930472,47.52953893,101.67,101.6,4.9034]
[1744161930673,9.8436,101.67,101.6,14.7527]
[1744161930874,9.8436,101.67,101.65,0.07164835]
[1744161931176,0.07086165,101.65,101.6,14.7527]
[1744161931675,9.847,101.64,101.58,5.9625903]
[1744161931873,47.52953893,101.63,101.58,1.1036903]
[1744161932371,9.85,101.61,101.59,0.06900328]
[1744161932577,0.066664,101.62,101.56,621.26101901]
[1744161932769,0.066664,101.62,101.56,611.40721901]
[1744161932967,47.52953893,101.63,101.54,0.72141561]
[1744161933276,47.52953893,101.65,101.54,0.72141561]
[1744161933480,425.02,101.68,101.54,0.72141561]
[1744161933665,47.52953893,101.66,101.6,9.8501]
[1744161933869,0.06273576,101.61,101.58,0.06760728]
[1744161934274,47.52953893,101.66,101.55,595.52953893]
[1744161934576,0.06711151,101.61,101.58,0.06755228]
[1744161934773,0.06711151,101.61,101.6,9.8501]
[1744161935169,425.02,101.68,101.6,14.7141]
[1744161935372,425.02,101.68,101.62,9.848]
[1744161935567,425.02,101.68,101.6,9.4198]
[1744161935973,425.02,101.68,101.61,1.9683102]
[1744161936174,57.37293893,101.67,101.61,1.9683102]
[1744161936482,47.52953893,101.65,101.63,0.06396814]
[1744161936675,47.52953893,101.65,101.56,4.5043]
[1744161936877,47.52953893,101.63,101.56,4.5043]
[1744161937179,47.52953893,101.63,101.54,5.19021561]
[1744161937379,9.8505,101.6,101.54,5.19021561]
[1744161937776,9.8505,101.6,101.54,0.72141561]
[1744161938083,0.06681077,101.58,101.56,0.06844314]
[1744161938276,0.06681077,101.58,101.54,10.57721561]
[1744161938277,0.06681077,101.58,101.54,0.72141561]
[1744161939684,47.52953893,101.56,101.55,0.07542728]
[1744161939886,47.5963497,101.58,101.54,0.72141561]
[1744161940383,0.06681077,101.58,101.54,0.72141561]
[1744161940585,47.5963497,101.58,101.54,0.72141561]
[1744161940783,47.52953893,101.56,101.54,0.72141561]
[1744161940981,47.52953893,101.56,101.55,0.06404148]
[1744161941379,47.5963497,101.58,101.55,0.06404148]
[1744161942087,0.06681077,101.58,101.55,0.06404148]
[1744161943689,0.06681077,101.58,101.52,4.9006]
[1744161944082,0.06681077,101.58,101.54,9.8553]
[1744161944584,0.06681077,101.58,101.55,9.8549]
[1744161944778,0.06681077,101.58,101.52,4.9006]
[1744161944979,0.06681077,101.58,101.55,0.06719973]
[1744161945582,0.06681077,101.58,101.56,9.8535]
[1744161946185,0.06681077,101.58,101.55,0.06719973]
[1744161947683,47.5963497,101.58,101.55,0.06719973]
[1744161947879,0.06681077,101.58,101.55,0.06719973]
[1744161948390,47.52953893,101.66,101.55,0.06719973]
[1744161948586,47.52953893,101.64,101.55,0.06719973]
[1744161948791,47.52953893,101.64,101.52,9.0812]
[1744161948983,47.52953893,101.64,101.56,9.8537]
[1744161949184,47.52953893,101.64,101.57,1.96908535]
[1744161949385,47.52953893,101.66,101.57,1.96908535]
[1744161949591,47.59413342,101.62,101.59,0.06587734]
[1744161949887,47.59413342,101.62,101.57,1.94671695]
[1744161950892,47.59413342,101.62,101.58,0.06347858]
[1744161951402,47.59413342,101.62,101.59,1.9686977]
[1744161951701,9.8501,101.6,101.59,1.9686977]
[1744161952001,0.06459449,101.62,101.59,1.9686977]
[1744161952504,0.06459449,101.62,101.59,2.01370529]
[1744161952698,9.8498,101.61,101.59,2.01370529]
[1744161953002,0.06459449,101.62,101.59,2.01370529]
[1744161954602,425.02,101.68,101.61,9.8492]
[1744161954803,425.02,101.68,101.62,1.96811651]
[1744161955005,9.8449,101.66,101.62,1.96811651]
[1744161955201,425.02,101.68,101.62,1.96811651]
[1744161955702,59.9395187,101.69,101.62,1.96811651]
[1744161955703,12.40997977,101.69,101.62,1.96811651]
[1744161955901,0.06628657,101.66,101.64,0.06344556]
[1744161956110,9.8399,101.71,101.64,0.06344556]
[1744161956320,9.8399,101.71,101.62,1.96811651]
[1744161956605,47.52953893,101.69,101.62,1.96811651]
[1744161957000,47.52953893,101.71,101.62,1.96811651]
[1744161957200,47.52953893,101.71,101.63,9.8472]
[1744161957402,0.06410428,101.67,101.64,2.02979102]
[1744161957704,0.06410428,101.67,101.64,1.96772924]
[1744161957905,0.06410428,101.67,101.64,11.88842242]
[1744161958308,9.8397,101.71,101.65,9.8447]
[1744161958508,47.52953893,101.73,101.66,1.96734212]
[1744161958697,57.36743893,101.73,101.66,1.96734212]
[1744161958905,9.8379,101.73,101.66,1.96734212]
[1744161959106,47.52953893,101.74,101.66,1.96734212]
[1744161959413,9.8391,101.72,101.66,11.81124212]
[1744161959611,0.07526834,101.71,101.69,0.07319776]
[1744161959906,0.07526834,101.71,101.7,1.96656833]
[1744161960505,9.8374,101.74,101.7,1.96656833]
[1744161960704,47.52953893,101.76,101.7,1.96656833]
[1744161960907,47.52953893,101.76,101.7,6.57216833]
[1744161961412,47.52953893,101.74,101.7,1.96656833]
[1744161961805,0.07068813,101.73,101.71,0.07219755]
[1744161961999,9.8385,101.72,101.71,0.07219755]
[1744161962409,57.36803893,101.72,101.71,0.02249755]
[1744161962620,6.30275349,101.72,101.71,0.02249755]
[1744161962911,0.07068813,101.73,101.71,1.98887253]
[1744161963111,47.52953893,101.78,101.71,1.98887253]
[1744161963311,9.8361,101.75,101.71,1.98887253]
[1744161963511,47.52953893,101.81,101.71,1.96637498]
[1744161963707,6.30763203,101.8,101.71,1.96637498]
[1744161964012,148.91975725,101.79,101.7,46.8831956]
[1744161964214,0.06995721,101.77,101.74,0.07159567]
[1744161964412,148.91975725,101.79,101.74,0.07159567]
[1744161964605,126.83925725,101.79,101.74,0.07159567]
[1744161964800,126.83925725,101.79,101.75,9.8353]
[1744161965216,126.83925725,101.79,101.76,1.9654088]
[1744161965608,136.7465899,101.79,101.76,1.9654088]
[1744161965914,37.67084568,101.86,101.77,47.52953893]
[1744161966121,52.07773893,101.85,101.76,2.03332087]
[1744161966312,52.07773893,101.85,101.77,1.96521568]
[1744161966512,4.5482,101.85,101.77,1.96521568]
[1744161966916,14.42636983,101.85,101.77,1.96521568]
[1744161967104,9.8304,101.81,101.8,0.07132438]
[1744161967415,0.07346725,101.82,101.8,0.07132438]
[1744161968116,0.07346725,101.82,101.81,1.96444357]
[1744161968711,9.90236725,101.82,101.81,1.96444357]
[1744161968911,9.89346725,101.82,101.73,4.5358]
[1744161969212,9.8333,101.78,101.73,4.5358]
[1744161969518,47.52953893,101.81,101.69,52.40443893]
[1744161969717,9.8318,101.79,101.73,57.36663893]
[1744161970019,4.5812,101.84,101.75,0.06843892]
[1744161970213,4.5812,101.84,101.75,47.59797785]
[1744161970512,4.5812,101.84,101.78,9.8322]
[1744161970718,4.5812,101.84,101.77,47.52953893]
[1744161971123,4.4694,101.86,101.77,47.52953893]
[1744161971419,0.0642225,101.82,101.79,0.0724642]
[1744161971823,0.0642225,101.82,101.75,57.06253893]
[1744161972117,47.52953893,101.85,101.79,0.06224109]
[1744161972511,0.0673482,101.8,101.75,57.06253893]
[1744161972711,4.5031,101.86,101.81,0.0665211]
[1744161972914,47.52953893,101.87,101.81,0.0665211]
[1744161973115,4.5812,101.88,101.75,57.06253893]
[1744161973316,0.06919205,101.85,101.83,0.06687075]
[1744161973519,4.5812,101.88,101.84,1.96386488]
[1744161973716,0.06699238,101.85,101.84,1.96386488]
[1744161978523,97.9444,102.18,101.84,1.96386488]
[1744161978524,9.0504,101.9,101.84,1.96386488]
[1744161978919,14.6496,101.93,101.87,9.8239]
[1744161979125,4.831,101.93,101.85,4.8895]
[1744161979821,0.06692765,101.9,101.88,0.07398436]
[1744161980114,9.8221,101.89,101.88,0.07398436]
[1744161980314,0.06692765,101.9,101.88,0.07398436]
[1744161980513,9.88862765,101.9,101.88,0.07398436]
[1744161981229,0.06692765,101.9,101.88,0.07398436]
[1744161981419,0.06692765,101.9,101.89,1.96290116]
[1744161981926,9.88852765,101.9,101.89,1.96290116]
[1744161982525,9.8221,101.89,101.88,0.07398436]
[1744161983214,9.88822765,101.9,101.88,0.07398436]
[1744161983418,0.06692765,101.9,101.88,0.07398436]
[1744161983614,9.8221,101.89,101.88,0.07398436]
[1744161984025,0.06692765,101.9,101.88,0.07398436]
[1744161984823,425.06,101.95,101.88,0.07398436]
[1744161985222,425.06,101.95,101.89,9.8215]
[1744161985530,425.06,101.95,101.87,14.081]
[1744161985925,0.06316736,101.92,101.9,0.07554022]
[1744161986128,0.06316736,101.92,101.82,595.52953893]
[1744161986129,9.8215,101.9,101.78,567.6645]
[1744161986325,0.06316736,101.92,101.83,4.8056]
[1744161986527,4.8003,101.92,101.83,4.8056]
[1744161986727,4.8003,101.92,101.85,9.8254]
[1744161986927,4.8003,101.92,101.83,4.8056]
[1744161987122,9.8225,101.89,101.83,14.6331]
[1744161987328,0.06218811,101.89,101.86,0.07154742]
[1744161988131,0.06218811,101.89,101.79,9.2754]
[1744161988331,9.8266,101.85,101.79,19.1065]
[1744161988532,47.52953893,101.88,101.79,19.1065]
[1744161988841,9.827,101.84,101.79,19.1065]
[1744161989033,47.52953893,101.86,101.77,4.7421]
[1744161989332,47.52953893,101.82,101.75,4.4397]
[1744161989533,47.52953893,101.82,101.72,14.6844]
[1744161989729,4.511,101.81,101.72,14.6844]
[1744161989930,47.52953893,101.8,101.71,4.4397]
[1744161990134,47.52953893,101.76,101.68,4.8462]
[1744161990636,0.06589833,101.73,101.71,0.07495134]
[1744161991030,9.8366,101.74,101.68,4.8462]
[1744161991230,0.06464335,101.73,101.71,0.06930303]
[1744161992637,0.06464335,101.73,101.71,9.90880303]
[1744161993733,0.06464335,101.73,101.71,0.06930303]
[1744161994537,0.06464335,101.73,101.65,9.3941]
[1744161994733,47.52953893,101.72,101.63,4.5066]
[1744161994930,47.52953893,101.7,101.6,9.0834]
[1744161995332,47.52953893,101.68,101.6,9.0834]
[1744161995733,0.06759199,101.65,101.63,0.06776577]
[1744161995934,0.06759199,101.65,101.63,9.91456577]
[1744161996133,4.7047,101.71,101.6,9.0834]
[1744161996336,4.7047,101.71,101.64,9.8457]
[1744161996337,0.06613201,101.65,101.64,9.8457]
[1744161996629,4.7047,101.71,101.64,9.8457]
[1744161996827,4.7047,101.71,101.65,1.96753566]
[1744161997034,0.06713015,101.66,101.65,1.96753566]
[1744161997234,4.7047,101.71,101.65,1.96753566]
[1744161997435,0.0755408,101.67,101.65,1.96753566]
[1744161997833,0.0755408,101.67,101.65,2.03364717]
[1744161998437,9.9197408,101.67,101.6,9.0834]
[1744161998635,0.0755408,101.67,101.6,9.0834]
[1744161998837,47.52953893,101.68,101.6,9.0834]
[1744161999541,47.52953893,101.7,101.6,9.0834]
[1744161999841,0.06346944,101.65,101.63,0.06959817]
[1744162000043,9.8481,101.63,101.56,9.854]
[1744162000338,52.00723893,101.64,101.51,52.39143893]
[1744162000540,52.00723893,101.64,101.52,62.0]
[1744162000738,52.00723893,101.64,101.53,47.52953893]
[1744162001241,9.8489,101.62,101.55,9.8543]
[1744162001433,0.0637948,101.6,101.57,0.06245815]
[1744162002735,47.59333373,101.6,101.51,14.3915]
[1744162003036,47.52953893,101.6,101.51,14.3915]
[1744162003244,47.52953893,101.62,101.51,61.92103893]
[1744162003447,9.8484,101.62,101.51,61.92103893]
[1744162003636,9.8484,101.62,101.53,47.52953893]
[1744162003830,9.8484,101.62,101.52,62.0]
[1744162004036,0.06459432,101.59,101.56,0.06869306]
[1744162005645,0.06459432,101.59,101.56,47.59823199]
[1744162005847,0.06459432,101.59,101.58,9.8521]
[1744162006037,0.06459432,101.59,101.56,47.59823199]
[1744162006234,0.06459432,101.59,101.56,0.06869306]
[1744162007441,0.06459432,101.59,101.56,9.92239306]
[1744162007646,0.06459432,101.59,101.57,1.96908535]
[1744162009347,0.06459432,101.59,101.57,11.82138535]
[1744162010249,0.06459432,101.59,101.58,9.8521]
[1744162010642,9.3214,101.64,101.57,15.96768535]
[1744162011339,9.3214,101.64,101.57,6.44578535]
[1744162011545,63.78137445,101.64,101.57,1.96908535]
[1744162011741,54.45997445,101.58,101.48,6.4158886]
[1744162011957,54.45997445,101.54,101.47,0.93206171]
[1744162012142,9.8574,101.53,101.47,0.93206171]
[1744162012338,0.06738439,101.52,101.51,0.06474994]
[1744162012541,0.06738439,101.52,101.47,0.93206171]
[1744162012746,9.8576,101.53,101.47,0.93206171]
[1744162013260,54.45997445,101.54,101.47,0.93206171]
[1744162013449,54.45997445,101.52,101.47,0.93206171]
[1744162013644,54.45997445,101.54,101.47,0.93206171]
[1744162013947,0.06470703,101.52,101.49,0.06429493]
[1744162014337,0.06470703,101.52,101.47,0.93206171]
[1744162014542,0.06470703,101.52,101.49,0.06821951]
[1744162016148,479.85997445,101.61,101.49,0.06821951]
[1744162016543,9.851,101.6,101.53,9.8568]
[1744162016848,425.4,101.61,101.5,54.45997445]
[1744162017046,425.4,101.61,101.51,14.3368]
[1744162017554,0.0716131,101.57,101.55,0.07237908]
[1744162018858,9.9256131,101.57,101.55,0.07237908]
[1744162019048,0.0716131,101.57,101.51,4.7329]
[1744162019252,0.0716131,101.57,101.48,9.3361]
[1744162019552,4.8573,101.57,101.48,14.2017]
[1744162020045,9.8555,101.55,101.48,24.0632]
[1744162020247,0.06723995,101.54,101.51,0.07117977]
[1744162021559,0.06723995,101.54,101.52,9.8573]
[1744162021750,0.06723995,101.54,101.51,0.07117977]
[1744162022150,0.06723995,101.54,101.52,9.8579]
[1744162022452,0.06723995,101.54,101.51,0.07117977]
[1744162022660,54.45997445,101.65,101.52,54.45997445]